[Event "Late-Titled-Tuesday-Blitz-June-25-2024"]
[Site "Chess.com"]
[Date "2024.06.25"]
[Round "10"]
[White "mostafa_sakha"]
[Black "GoValya"]
[Result "1/2-1/2"]
[WhiteElo "2421"]
[BlackElo "2242"]
[TimeControl "180+1"]
[EndTime "15:56:38 PDT"]
[Termination "Game drawn by stalemate"]

1. d4 {[%clk 0:03:00]} 1... g6 {[%clk 0:02:59.6]} 2. e4 {[%clk 0:02:58.7]} 2...
c5 {[%clk 0:02:56.6]} 3. d5 {[%clk 0:02:58.4]} 3... Bg7 {[%clk 0:02:56.5]} 4.
Nf3 {[%clk 0:02:57.9]} 4... d6 {[%clk 0:02:56.8]} 5. Nc3 {[%clk 0:02:57.5]} 5...
Bg4 {[%clk 0:02:56.8]} 6. Be2 {[%clk 0:02:53.2]} 6... a6 {[%clk 0:02:56.3]} 7.
a4 {[%clk 0:02:52.5]} 7... Nf6 {[%clk 0:02:54.9]} 8. O-O {[%clk 0:02:51.8]} 8...
Nbd7 {[%clk 0:02:54.4]} 9. Nd2 {[%clk 0:02:51]} 9... Bxe2 {[%clk 0:02:53.6]} 10.
Qxe2 {[%clk 0:02:51.9]} 10... e6 {[%clk 0:02:47.8]} 11. dxe6 {[%clk 0:02:49.3]}
11... fxe6 {[%clk 0:02:47.6]} 12. Nc4 {[%clk 0:02:48.5]} 12... Nb6 {[%clk
0:02:22.7]} 13. Nxd6+ {[%clk 0:02:40.8]} 13... Qxd6 {[%clk 0:02:22.3]} 14. e5
{[%clk 0:02:41.7]} 14... Qe7 {[%clk 0:02:22.5]} 15. exf6 {[%clk 0:02:40.6]}
15... Bxf6 {[%clk 0:02:22.9]} 16. Re1 {[%clk 0:02:37.9]} 16... O-O {[%clk
0:02:19]} 17. Qxe6+ {[%clk 0:02:35.9]} 17... Qxe6 {[%clk 0:02:17.8]} 18. Rxe6
{[%clk 0:02:36.8]} 18... Nc4 {[%clk 0:02:00.4]} 19. Bh6 {[%clk 0:02:26.8]} 19...
Rf7 {[%clk 0:02:00]} 20. Ne4 {[%clk 0:02:18.8]} 20... Bxb2 {[%clk 0:01:48.7]}
21. Rd1 {[%clk 0:02:17.6]} 21... Rc8 {[%clk 0:01:26]} 22. c3 {[%clk 0:02:05.3]}
22... b5 {[%clk 0:01:15.2]} 23. axb5 {[%clk 0:01:52.1]} 23... axb5 {[%clk
0:01:15.3]} 24. Nxc5 {[%clk 0:01:49.7]} 24... Bxc3 {[%clk 0:01:11.9]} 25. Rc6
{[%clk 0:01:41.4]} 25... Re8 {[%clk 0:01:03.9]} 26. Ne6 {[%clk 0:01:31.8]} 26...
Rfe7 {[%clk 0:01:01.5]} 27. g4 {[%clk 0:00:51.2]} 27... Rxe6 {[%clk 0:00:51.9]}
28. Rxe6 {[%clk 0:00:50.4]} 28... Rxe6 {[%clk 0:00:52.8]} 29. Rd8+ {[%clk
0:00:50.7]} 29... Kf7 {[%clk 0:00:53.5]} 30. Rf8+ {[%clk 0:00:50]} 30... Ke7
{[%clk 0:00:53.3]} 31. Rb8 {[%clk 0:00:48.1]} 31... Rb6 {[%clk 0:00:48.6]} 32.
Rc8 {[%clk 0:00:43.7]} 32... Be5 {[%clk 0:00:36.6]} 33. Kg2 {[%clk 0:00:42.1]}
33... Kd7 {[%clk 0:00:30.6]} 34. Rc5 {[%clk 0:00:36.7]} 34... Bd4 {[%clk
0:00:27.2]} 35. Rd5+ {[%clk 0:00:36.2]} 35... Rd6 {[%clk 0:00:27.5]} 36. Rxb5
{[%clk 0:00:36.4]} 36... Ke6 {[%clk 0:00:22.9]} 37. f4 {[%clk 0:00:32.4]} 37...
Ne3+ {[%clk 0:00:20]} 38. Kf3 {[%clk 0:00:32]} 38... Nd5 {[%clk 0:00:20.2]} 39.
Rb7 {[%clk 0:00:28.4]} 39... Ne7 {[%clk 0:00:11.3]} 40. Bg5 {[%clk 0:00:15.4]}
40... Bf6 {[%clk 0:00:05.4]} 41. h4 {[%clk 0:00:09.9]} 41... Bxg5 {[%clk
0:00:02.8]} 42. hxg5 {[%clk 0:00:10.1]} 42... Ra6 {[%clk 0:00:01.6]} 43. Rb3
{[%clk 0:00:09.1]} 43... Ra4 {[%clk 0:00:01.1]} 44. Re3+ {[%clk 0:00:07.8]}
44... Kf7 {[%clk 0:00:01.2]} 45. Kg3 {[%clk 0:00:06.1]} 45... Nd5 {[%clk
0:00:01]} 46. Rf3 {[%clk 0:00:05.8]} 46... Ke6 {[%clk 0:00:01.4]} 47. f5+ {[%clk
0:00:05.6]} 47... gxf5 {[%clk 0:00:01.9]} 48. gxf5+ {[%clk 0:00:06.5]} 48... Kf7
{[%clk 0:00:01.8]} 49. Rd3 {[%clk 0:00:06.2]} 49... Ne7 {[%clk 0:00:01.6]} 50.
Rd7 {[%clk 0:00:06]} 50... Ra5 {[%clk 0:00:01.2]} 51. f6 {[%clk 0:00:06.2]}
51... Rxg5+ {[%clk 0:00:01.3]} 52. Kh4 {[%clk 0:00:06.6]} 52... Kxf6 {[%clk
0:00:01.6]} 53. Rxe7 {[%clk 0:00:05.8]} 53... Kxe7 {[%clk 0:00:01]} 54. Kxg5
{[%clk 0:00:06.2]} 54... Kf7 {[%clk 0:00:01.9]} 55. Kh6 {[%clk 0:00:06.4]} 55...
Kg8 {[%clk 0:00:02.8]} 56. Kh5 {[%clk 0:00:06.6]} 56... Kg7 {[%clk 0:00:03.7]}
57. Kh4 {[%clk 0:00:07.1]} 57... h6 {[%clk 0:00:04.2]} 58. Kh3 {[%clk 0:00:08]}
58... Kg6 {[%clk 0:00:04.8]} 59. Kh4 {[%clk 0:00:08.3]} 59... h5 {[%clk
0:00:04.9]} 60. Kh3 {[%clk 0:00:09.2]} 60... Kg5 {[%clk 0:00:05.4]} 61. Kh2
{[%clk 0:00:09.4]} 61... h4 {[%clk 0:00:05.2]} 62. Kh3 {[%clk 0:00:09.8]} 62...
Kh5 {[%clk 0:00:06.1]} 63. Kh2 {[%clk 0:00:10.1]} 63... Kg4 {[%clk 0:00:06.6]}
64. Kh1 {[%clk 0:00:10.5]} 64... h3 {[%clk 0:00:07.1]} 65. Kh2 {[%clk 0:00:11]}
65... Kh4 {[%clk 0:00:07.4]} 66. Kh1 {[%clk 0:00:11.3]} 66... Kg3 {[%clk
0:00:07.9]} 67. Kg1 {[%clk 0:00:11.8]} 67... h2+ {[%clk 0:00:08.1]} 68. Kh1
{[%clk 0:00:12.7]} 68... Kh3 {[%clk 0:00:08.6]} 1/2-1/2

[Event "Late-Titled-Tuesday-Blitz-June-25-2024"]
[Site "Chess.com"]
[Date "2024.06.25"]
[Round "10"]
[White "fin"]
[Black "CrimeFightingSpider07"]
[Result "1-0"]
[WhiteElo "2719"]
[BlackElo "2552"]
[TimeControl "180+1"]
[EndTime "15:56:40 PDT"]
[Termination "fin won by checkmate"]

1. e4 {[%clk 0:03:00.9]} 1... e5 {[%clk 0:03:00]} 2. Nf3 {[%clk 0:02:57.6]} 2...
Nf6 {[%clk 0:03:00]} 3. Nxe5 {[%clk 0:02:57.6]} 3... d6 {[%clk 0:03:00.3]} 4.
Nf3 {[%clk 0:02:58]} 4... Nxe4 {[%clk 0:03:00.8]} 5. Nc3 {[%clk 0:02:58.5]} 5...
Nxc3 {[%clk 0:03:01.2]} 6. dxc3 {[%clk 0:02:59.4]} 6... Be7 {[%clk 0:03:01.1]}
7. Bf4 {[%clk 0:02:58.8]} 7... O-O {[%clk 0:02:53.4]} 8. Qd2 {[%clk 0:02:57.9]}
8... Nc6 {[%clk 0:02:53.6]} 9. O-O-O {[%clk 0:02:57.5]} 9... Bf5 {[%clk
0:02:53.5]} 10. h3 {[%clk 0:02:54.3]} 10... Re8 {[%clk 0:02:52.4]} 11. g4 {[%clk
0:02:53.3]} 11... Be4 {[%clk 0:02:53]} 12. Bg2 {[%clk 0:02:53.1]} 12... Bf6
{[%clk 0:02:33.6]} 13. Rhe1 {[%clk 0:02:50.4]} 13... Bxf3 {[%clk 0:02:32]} 14.
Bxf3 {[%clk 0:02:50.4]} 14... Qc8 {[%clk 0:02:24.7]} 15. Bd5 {[%clk 0:02:46.9]}
15... Be5 {[%clk 0:02:22.5]} 16. Be3 {[%clk 0:02:42.9]} 16... g6 {[%clk
0:02:17.3]} 17. f4 {[%clk 0:02:42.3]} 17... Bg7 {[%clk 0:02:17.8]} 18. f5 {[%clk
0:02:41]} 18... Ne7 {[%clk 0:02:12]} 19. Bb3 {[%clk 0:02:32.4]} 19... d5 {[%clk
0:02:11.7]} 20. Rf1 {[%clk 0:02:27.7]} 20... gxf5 {[%clk 0:01:59.4]} 21. gxf5
{[%clk 0:02:27.2]} 21... Nxf5 {[%clk 0:02:00.1]} 22. Bf4 {[%clk 0:01:59.5]}
22... c6 {[%clk 0:01:58.7]} 23. Rg1 {[%clk 0:01:55.8]} 23... Kh8 {[%clk
0:01:55.4]} 24. c4 {[%clk 0:01:56]} 24... d4 {[%clk 0:01:49.6]} 25. c5 {[%clk
0:01:54.9]} 25... Qd7 {[%clk 0:01:44.9]} 26. Bc4 {[%clk 0:01:53.2]} 26... Qe7
{[%clk 0:01:41.1]} 27. Bd3 {[%clk 0:01:51.2]} 27... Ne3 {[%clk 0:01:40.8]} 28.
Rde1 {[%clk 0:01:38]} 28... Qxc5 {[%clk 0:01:34.1]} 29. Qf2 {[%clk 0:01:38.5]}
29... Qh5 {[%clk 0:01:22.4]} 30. Rg5 {[%clk 0:01:33.4]} 30... Qxh3 {[%clk
0:01:21.2]} 31. Reg1 {[%clk 0:01:25.5]} 31... Bf6 {[%clk 0:01:13.8]} 32. R5g3
{[%clk 0:00:49.4]} 32... Qh4 {[%clk 0:01:12.1]} 33. Qf3 {[%clk 0:00:48.3]} 33...
Rg8 {[%clk 0:00:40.2]} 34. Rxg8+ {[%clk 0:00:44.4]} 34... Rxg8 {[%clk
0:00:39.2]} 35. Rh1 {[%clk 0:00:44.5]} 35... Qxh1+ {[%clk 0:00:08.4]} 36. Qxh1
{[%clk 0:00:42.4]} 36... Rg7 {[%clk 0:00:09.1]} 37. b3 {[%clk 0:00:36.6]} 37...
Kg8 {[%clk 0:00:07.6]} 38. Qe4 {[%clk 0:00:30.2]} 38... Kh8 {[%clk 0:00:04.9]}
39. Qe8+ {[%clk 0:00:25.9]} 39... Rg8 {[%clk 0:00:04.7]} 40. Qxf7 {[%clk
0:00:24.9]} 40... Bg7 {[%clk 0:00:05.4]} 41. Be5 {[%clk 0:00:18.5]} 41... Nd5
{[%clk 0:00:05]} 42. Bxd4 {[%clk 0:00:13.2]} 42... Nb6 {[%clk 0:00:01.5]} 43.
Qxb7 {[%clk 0:00:09.1]} 43... Nd5 {[%clk 0:00:01]} 44. Qxa7 {[%clk 0:00:09.2]}
44... Nf4 {[%clk 0:00:01]} 45. Bxg7+ {[%clk 0:00:06.9]} 45... Rxg7 {[%clk
0:00:01.9]} 46. Qb8+ {[%clk 0:00:07.4]} 46... Rg8 {[%clk 0:00:02.4]} 47. Qxf4
{[%clk 0:00:08.1]} 47... Rg7 {[%clk 0:00:02.8]} 48. a4 {[%clk 0:00:07.8]} 48...
Kg8 {[%clk 0:00:02.6]} 49. a5 {[%clk 0:00:07.8]} 49... Re7 {[%clk 0:00:01.7]}
50. Bc4+ {[%clk 0:00:07.9]} 50... Kg7 {[%clk 0:00:02.3]} 51. Qg5+ {[%clk
0:00:08.5]} 51... Kf8 {[%clk 0:00:02.7]} 52. Qf6+ {[%clk 0:00:09]} 52... Ke8
{[%clk 0:00:03.1]} 53. Qxc6+ {[%clk 0:00:09.7]} 53... Kd8 {[%clk 0:00:03.4]} 54.
a6 {[%clk 0:00:10.3]} 54... Rc7 {[%clk 0:00:03.7]} 55. Qb6 {[%clk 0:00:10.4]}
55... Kd7 {[%clk 0:00:03.7]} 56. a7 {[%clk 0:00:10.1]} 56... Rxa7 {[%clk
0:00:04.4]} 57. Qxa7+ {[%clk 0:00:11]} 57... Kd6 {[%clk 0:00:04.7]} 58. Qe3
{[%clk 0:00:11.7]} 58... Kc6 {[%clk 0:00:04.7]} 59. Qh6+ {[%clk 0:00:12.6]}
59... Kc5 {[%clk 0:00:04.7]} 60. Qxh7 {[%clk 0:00:11.9]} 60... Kb4 {[%clk
0:00:05.4]} 61. Qe7+ {[%clk 0:00:11]} 61... Kc3 {[%clk 0:00:06]} 62. Qe1+ {[%clk
0:00:09.6]} 62... Kd4 {[%clk 0:00:05.1]} 63. Kb2 {[%clk 0:00:09.9]} 63... Kc5
{[%clk 0:00:05.6]} 64. Kc3 {[%clk 0:00:09.5]} 64... Kb6 {[%clk 0:00:05.8]} 65.
Qe6+ {[%clk 0:00:09.8]} 65... Kc5 {[%clk 0:00:04.4]} 66. b4# {[%clk 0:00:09.9]}
1-0

[Event "Late-Titled-Tuesday-Blitz-June-25-2024"]
[Site "Chess.com"]
[Date "2024.06.25"]
[Round "10"]
[White "campochess"]
[Black "mouseslips_are_the_best"]
[Result "1-0"]
[WhiteElo "2255"]
[BlackElo "2354"]
[TimeControl "180+1"]
[EndTime "15:56:55 PDT"]
[Termination "campochess won by resignation"]

1. d4 {[%clk 0:02:59.6]} 1... Nf6 {[%clk 0:02:59]} 2. Bg5 {[%clk 0:02:59.2]}
2... c5 {[%clk 0:02:58.5]} 3. d5 {[%clk 0:02:58]} 3... d6 {[%clk 0:02:56.1]} 4.
Nc3 {[%clk 0:02:54.2]} 4... h6 {[%clk 0:02:55.1]} 5. Bxf6 {[%clk 0:02:53.5]}
5... exf6 {[%clk 0:02:54]} 6. g3 {[%clk 0:02:53.1]} 6... g6 {[%clk 0:02:54]} 7.
Bg2 {[%clk 0:02:52.6]} 7... Bg7 {[%clk 0:02:54.6]} 8. Nf3 {[%clk 0:02:52.2]}
8... f5 {[%clk 0:02:53]} 9. h4 {[%clk 0:02:50.2]} 9... b5 {[%clk 0:02:48.4]} 10.
Qd2 {[%clk 0:02:43.9]} 10... b4 {[%clk 0:02:47.1]} 11. Nd1 {[%clk 0:02:43.2]}
11... Nd7 {[%clk 0:02:45.4]} 12. a3 {[%clk 0:02:42.9]} 12... Rb8 {[%clk
0:02:40.1]} 13. axb4 {[%clk 0:02:41.5]} 13... Rxb4 {[%clk 0:02:40.2]} 14. Rxa7
{[%clk 0:02:31.1]} 14... Qb6 {[%clk 0:02:37.9]} 15. Qe3+ {[%clk 0:02:23.8]}
15... Ne5 {[%clk 0:02:32.3]} 16. Nxe5 {[%clk 0:02:13.2]} 16... Bxe5 {[%clk
0:02:29.6]} 17. Ra8 {[%clk 0:02:03.9]} 17... O-O {[%clk 0:02:23]} 18. Qxh6
{[%clk 0:01:58.3]} 18... Bxb2 {[%clk 0:02:16.5]} 19. h5 {[%clk 0:01:47.6]} 19...
Bg7 {[%clk 0:02:07.9]} 20. Qg5 {[%clk 0:01:46.9]} 20... Rb1 {[%clk 0:02:03.4]}
21. O-O {[%clk 0:01:45.8]} 21... gxh5 {[%clk 0:01:55.1]} 22. Ne3 {[%clk
0:01:41.6]} 22... Rxf1+ {[%clk 0:01:54.1]} 23. Bxf1 {[%clk 0:01:39.8]} 23... Qb2
{[%clk 0:01:39.7]} 24. Bh3 {[%clk 0:01:25.6]} 24... Qf6 {[%clk 0:01:28]} 25.
Qxh5 {[%clk 0:01:22]} 25... Qg6 {[%clk 0:01:27.6]} 26. Qf3 {[%clk 0:01:15.1]}
26... f4 {[%clk 0:01:06.5]} 27. Rxc8 {[%clk 0:01:06.4]} 27... Rxc8 {[%clk
0:01:04.8]} 28. Bxc8 {[%clk 0:01:03.9]} 28... fxe3 {[%clk 0:01:05.3]} 29. Qxe3
{[%clk 0:01:03.7]} 29... Qxc2 {[%clk 0:01:04.6]} 30. g4 {[%clk 0:00:48.4]} 30...
c4 {[%clk 0:00:55.8]} 31. Qe8+ {[%clk 0:00:46.8]} 31... Bf8 {[%clk 0:00:55.5]}
32. Bf5 {[%clk 0:00:39.9]} 32... Qc1+ {[%clk 0:00:55.2]} 33. Kg2 {[%clk
0:00:38.5]} 33... c3 {[%clk 0:00:54]} 34. Qc8 {[%clk 0:00:38.1]} 34... Qd2
{[%clk 0:00:51]} 35. e3 {[%clk 0:00:37.3]} 35... Qxd5+ {[%clk 0:00:50.7]} 36.
Kg3 {[%clk 0:00:27.8]} 36... Qe5+ {[%clk 0:00:49.6]} 37. Kg2 {[%clk 0:00:27.8]}
37... d5 {[%clk 0:00:44.8]} 38. Qc6 {[%clk 0:00:24.6]} 38... Kg7 {[%clk
0:00:40.3]} 39. Kg1 {[%clk 0:00:22.3]} 39... Bd6 {[%clk 0:00:39.3]} 40. Kf1
{[%clk 0:00:21.7]} 40... d4 {[%clk 0:00:33.3]} 41. Qf3 {[%clk 0:00:19.7]} 41...
dxe3 {[%clk 0:00:25.4]} 42. Qxe3 {[%clk 0:00:18.7]} 42... Qxe3 {[%clk
0:00:22.8]} 43. fxe3 {[%clk 0:00:18.7]} 43... Kf6 {[%clk 0:00:23.4]} 44. Ke2
{[%clk 0:00:18.9]} 44... Kg5 {[%clk 0:00:22.4]} 45. Kd3 {[%clk 0:00:19]} 45...
Be5 {[%clk 0:00:22.9]} 46. Bd7 {[%clk 0:00:18.2]} 46... f6 {[%clk 0:00:23.1]}
47. Bf5 {[%clk 0:00:17.8]} 47... Kh4 {[%clk 0:00:23.3]} 48. Bd7 {[%clk
0:00:17.8]} 48... Kg3 {[%clk 0:00:23.9]} 49. Bf5 {[%clk 0:00:17.8]} 49... Kf2
{[%clk 0:00:24.5]} 50. Be6 {[%clk 0:00:17.9]} 50... Ke1 {[%clk 0:00:25.1]} 51.
Bb3 {[%clk 0:00:17.6]} 51... Kf2 {[%clk 0:00:24.1]} 52. Bc4 {[%clk 0:00:16.9]}
52... Ke1 {[%clk 0:00:24]} 53. Bb3 {[%clk 0:00:17]} 53... Kf2 {[%clk 0:00:23.8]}
54. Bc4 {[%clk 0:00:17.1]} 54... Kf3 {[%clk 0:00:24.3]} 55. Be6 {[%clk
0:00:16.5]} 55... Kg3 {[%clk 0:00:22.3]} 56. Bd7 {[%clk 0:00:15.6]} 56... Kf3
{[%clk 0:00:22.4]} 57. Be6 {[%clk 0:00:15.5]} 57... Kg3 {[%clk 0:00:22.9]} 58.
Bd7 {[%clk 0:00:15.5]} 58... Kh4 {[%clk 0:00:23.8]} 59. Be6 {[%clk 0:00:15]}
59... Kg5 {[%clk 0:00:24.7]} 60. Bd7 {[%clk 0:00:14.5]} 60... Kg6 {[%clk
0:00:25.3]} 61. Bf5+ {[%clk 0:00:14.6]} 61... Kg7 {[%clk 0:00:26]} 62. Be6
{[%clk 0:00:14.6]} 62... Kf8 {[%clk 0:00:26.9]} 63. Bb3 {[%clk 0:00:13]} 63...
Ke7 {[%clk 0:00:26.7]} 64. Ke4 {[%clk 0:00:12.8]} 64... Kd6 {[%clk 0:00:26.8]}
65. Kf5 {[%clk 0:00:11.5]} 65... Bg3 {[%clk 0:00:23]} 66. Kxf6 {[%clk
0:00:10.9]} 66... Kc5 {[%clk 0:00:23.3]} 67. g5 {[%clk 0:00:10.7]} 67... Bf2
{[%clk 0:00:23]} 68. e4 {[%clk 0:00:05.9]} 68... Bd4+ {[%clk 0:00:22.5]} 69. Kf7
{[%clk 0:00:05.6]} 69... Kb4 {[%clk 0:00:19.4]} 70. Bc2 {[%clk 0:00:05.5]} 70...
Ka3 {[%clk 0:00:19.9]} 71. g6 {[%clk 0:00:05.7]} 71... Kb2 {[%clk 0:00:20.5]}
72. Ba4 {[%clk 0:00:05.7]} 72... c2 {[%clk 0:00:18.7]} 73. Bxc2 {[%clk
0:00:05.4]} 73... Kxc2 {[%clk 0:00:19.6]} 74. g7 {[%clk 0:00:05.2]} 74... Bxg7
{[%clk 0:00:20.3]} 75. Kxg7 {[%clk 0:00:04.8]} 75... Kd3 {[%clk 0:00:21.2]} 76.
e5 {[%clk 0:00:04.9]} 76... Kd4 {[%clk 0:00:22.1]} 77. e6 {[%clk 0:00:05.3]}
77... Ke5 {[%clk 0:00:23]} 78. e7 {[%clk 0:00:05.7]} 78... Kd6 {[%clk
0:00:23.9]} 79. e8=Q {[%clk 0:00:05.8]} 79... Kc7 {[%clk 0:00:23.6]} 80. Qe6
{[%clk 0:00:05.6]} 80... Kd8 {[%clk 0:00:23.7]} 81. Kf6 {[%clk 0:00:05.9]} 81...
Kc7 {[%clk 0:00:24.2]} 82. Ke5 {[%clk 0:00:06.1]} 82... Kd8 {[%clk 0:00:24.6]}
83. Qf7 {[%clk 0:00:06.2]} 1-0

[Event "Late-Titled-Tuesday-Blitz-June-25-2024"]
[Site "Chess.com"]
[Date "2024.06.25"]
[Round "10"]
[White "bubeliang"]
[Black "igorkovalenko"]
[Result "1/2-1/2"]
[WhiteElo "2797"]
[BlackElo "2986"]
[TimeControl "180+1"]
[EndTime "15:56:57 PDT"]
[Termination "Game drawn - insufficient material"]

1. e4 {[%clk 0:03:00.9]} 1... d5 {[%clk 0:02:46.1]} 2. Nc3 {[%clk 0:02:52.7]}
2... dxe4 {[%clk 0:02:46.1]} 3. Nxe4 {[%clk 0:02:53.1]} 3... Nc6 {[%clk
0:02:45.1]} 4. Nf3 {[%clk 0:02:50.5]} 4... Nf6 {[%clk 0:02:43.7]} 5. Nxf6+
{[%clk 0:02:49.5]} 5... exf6 {[%clk 0:02:44.6]} 6. d4 {[%clk 0:02:49.1]} 6...
Bd6 {[%clk 0:02:45]} 7. Bd3 {[%clk 0:02:47.6]} 7... O-O {[%clk 0:02:44.8]} 8.
O-O {[%clk 0:02:47.8]} 8... Bg4 {[%clk 0:02:44.3]} 9. c3 {[%clk 0:02:45.7]} 9...
Qd7 {[%clk 0:02:44.7]} 10. Re1 {[%clk 0:02:35.4]} 10... Rfe8 {[%clk 0:02:43.7]}
11. Be3 {[%clk 0:02:33.6]} 11... Ne7 {[%clk 0:02:40.5]} 12. h3 {[%clk
0:02:31.6]} 12... Bh5 {[%clk 0:02:30.6]} 13. Ne5 {[%clk 0:02:07]} 13... Bxd1
{[%clk 0:02:25.1]} 14. Nxd7 {[%clk 0:02:06.3]} 14... Ba4 {[%clk 0:02:25.3]} 15.
Nc5 {[%clk 0:02:06.2]} 15... Bxc5 {[%clk 0:02:25.8]} 16. dxc5 {[%clk 0:02:07.1]}
16... Rad8 {[%clk 0:02:19.3]} 17. Be4 {[%clk 0:01:55.7]} 17... Bc6 {[%clk
0:02:18.4]} 18. Bxc6 {[%clk 0:01:46.1]} 18... Nxc6 {[%clk 0:02:18.1]} 19. Bf4
{[%clk 0:01:46.3]} 19... Ne5 {[%clk 0:02:07.7]} 20. Rad1 {[%clk 0:01:44.3]}
20... Kf8 {[%clk 0:01:49.5]} 21. Kf1 {[%clk 0:01:32.5]} 21... Rxd1 {[%clk
0:01:39.1]} 22. Rxd1 {[%clk 0:01:33.2]} 22... Ke7 {[%clk 0:01:39.7]} 23. Re1
{[%clk 0:01:12.3]} 23... Kd7 {[%clk 0:01:39.6]} 24. b4 {[%clk 0:01:03.9]} 24...
Re6 {[%clk 0:01:32.7]} 25. Rd1+ {[%clk 0:00:51.9]} 25... Kc8 {[%clk 0:01:31.6]}
26. Bxe5 {[%clk 0:00:47.1]} 26... fxe5 {[%clk 0:01:31.7]} 27. Ke2 {[%clk
0:00:47]} 27... Ra6 {[%clk 0:01:29.5]} 28. Rd2 {[%clk 0:00:46.2]} 28... Rg6
{[%clk 0:01:09.3]} 29. g3 {[%clk 0:00:42.5]} 29... h5 {[%clk 0:01:07.1]} 30. Rd5
{[%clk 0:00:36.2]} 30... Re6 {[%clk 0:01:01.4]} 31. Ke3 {[%clk 0:00:34.1]} 31...
c6 {[%clk 0:00:58.3]} 32. Rd2 {[%clk 0:00:31.8]} 32... g6 {[%clk 0:00:45]} 33.
g4 {[%clk 0:00:22.6]} 33... hxg4 {[%clk 0:00:29.9]} 34. hxg4 {[%clk 0:00:23.5]}
34... Rf6 {[%clk 0:00:28.6]} 35. f3 {[%clk 0:00:20.5]} 35... Rf4 {[%clk
0:00:28]} 36. Rh2 {[%clk 0:00:19.7]} 36... Kc7 {[%clk 0:00:24.5]} 37. Rh7 {[%clk
0:00:18.5]} 37... b6 {[%clk 0:00:24.3]} 38. cxb6+ {[%clk 0:00:17.1]} 38... Kxb6
{[%clk 0:00:24.1]} 39. Rh8 {[%clk 0:00:16.7]} 39... a5 {[%clk 0:00:20.3]} 40. a3
{[%clk 0:00:15.9]} 40... axb4 {[%clk 0:00:19.2]} 41. axb4 {[%clk 0:00:12.2]}
41... g5 {[%clk 0:00:19.1]} 42. Rb8+ {[%clk 0:00:10.4]} 42... Kc7 {[%clk
0:00:19]} 43. Rf8 {[%clk 0:00:10.2]} 43... f6 {[%clk 0:00:19.4]} 44. c4 {[%clk
0:00:07.6]} 44... Kd6 {[%clk 0:00:16.6]} 45. b5 {[%clk 0:00:06.1]} 45... cxb5
{[%clk 0:00:15.6]} 46. cxb5 {[%clk 0:00:06.8]} 46... Kc5 {[%clk 0:00:16.2]} 47.
Rb8 {[%clk 0:00:05.9]} 47... Rb4 {[%clk 0:00:16]} 48. Rf8 {[%clk 0:00:05.2]}
48... Rf4 {[%clk 0:00:16.3]} 49. Rb8 {[%clk 0:00:05.3]} 49... Kb4 {[%clk
0:00:16.9]} 50. b6 {[%clk 0:00:05.5]} 50... Kb5 {[%clk 0:00:17.3]} 51. Ke2
{[%clk 0:00:05.2]} 51... Ka6 {[%clk 0:00:17.6]} 52. Ke3 {[%clk 0:00:05.4]} 52...
Kb5 {[%clk 0:00:18.2]} 53. Ke2 {[%clk 0:00:05.6]} 53... Kc6 {[%clk 0:00:15.2]}
54. Ke3 {[%clk 0:00:05.7]} 54... Kc5 {[%clk 0:00:15.1]} 55. Ke2 {[%clk
0:00:05.2]} 55... e4 {[%clk 0:00:12.9]} 56. fxe4 {[%clk 0:00:05.1]} 56... Rxg4
{[%clk 0:00:13.1]} 57. Kf3 {[%clk 0:00:04.7]} 57... Rf4+ {[%clk 0:00:13.3]} 58.
Ke3 {[%clk 0:00:05.1]} 58... Kb5 {[%clk 0:00:12.7]} 59. Kd3 {[%clk 0:00:04.5]}
59... Rf3+ {[%clk 0:00:12.4]} 60. Ke2 {[%clk 0:00:03.4]} 60... Rf4 {[%clk
0:00:09.9]} 61. Ke3 {[%clk 0:00:03.8]} 61... f5 {[%clk 0:00:09.9]} 62. exf5
{[%clk 0:00:03.5]} 62... Rxf5 {[%clk 0:00:10.8]} 63. b7 {[%clk 0:00:03.8]} 63...
Kb6 {[%clk 0:00:11]} 64. Ke4 {[%clk 0:00:04.3]} 64... Rb5 {[%clk 0:00:11]} 65.
Rg8 {[%clk 0:00:03.8]} 65... Kxb7 {[%clk 0:00:11.1]} 66. Kf3 {[%clk 0:00:04.3]}
66... Kc6 {[%clk 0:00:11.3]} 67. Kg4 {[%clk 0:00:04.4]} 67... Kd6 {[%clk
0:00:12]} 68. Rxg5 {[%clk 0:00:04.9]} 68... Rxg5+ {[%clk 0:00:12.9]} 69. Kxg5
{[%clk 0:00:05.1]} 1/2-1/2